[Event "*** Titled Tuesday Blitz"]
[Site "Chess.com"]
[Date "2021.03.30"]
[Round "10"]
[White "Larciano"]
[Black "Susik_Gaboyan"]
[Result "0-1"]
[WhiteElo "1941"]
[BlackElo "2254"]
[TimeControl "180+1"]
[EndTime "11:57:29 PDT"]
[Termination "Susik_Gaboyan won by checkmate"]

1. e4 {[%clk 0:03:00.9]} 1... c5 {[%clk 0:02:57]} 2. c3 {[%clk 0:03:00.2]} 2...
d5 {[%clk 0:02:56]} 3. exd5 {[%clk 0:02:59.4]} 3... Qxd5 {[%clk 0:02:56.9]} 4.
d4 {[%clk 0:02:59]} 4... Nc6 {[%clk 0:02:52.9]} 5. Nf3 {[%clk 0:02:58.9]} 5...
cxd4 {[%clk 0:02:52.5]} 6. cxd4 {[%clk 0:02:58.4]} 6... e5 {[%clk 0:02:52.8]} 7.
Nc3 {[%clk 0:02:58.5]} 7... Bb4 {[%clk 0:02:51.3]} 8. Bd2 {[%clk 0:02:58.7]}
8... Bxc3 {[%clk 0:02:51.7]} 9. Bxc3 {[%clk 0:02:59.3]} 9... e4 {[%clk
0:02:52.2]} 10. Ne5 {[%clk 0:02:59.3]} 10... Nxe5 {[%clk 0:02:52.8]} 11. dxe5
{[%clk 0:02:59.6]} 11... Ne7 {[%clk 0:02:53]} 12. Qe2 {[%clk 0:02:53.6]} 12...
O-O {[%clk 0:02:31.8]} 13. Rd1 {[%clk 0:02:53.2]} 13... Qc6 {[%clk 0:02:26.9]}
14. Rd6 {[%clk 0:02:48.5]} 14... Qa4 {[%clk 0:02:24]} 15. a3 {[%clk 0:02:45]}
15... Bf5 {[%clk 0:02:20.2]} 16. Qb5 {[%clk 0:02:32.5]} 16... Qc2 {[%clk
0:02:06.5]} 17. Rd2 {[%clk 0:02:29.5]} 17... Qc1+ {[%clk 0:02:01.2]} 18. Rd1
{[%clk 0:02:29.3]} 18... Qg5 {[%clk 0:02:01.8]} 19. h4 {[%clk 0:02:23.6]} 19...
Qf4 {[%clk 0:01:54.5]} 20. Be2 {[%clk 0:01:55.4]} 20... e3 {[%clk 0:01:44.6]}
21. fxe3 {[%clk 0:01:33.8]} 21... Qxe3 {[%clk 0:01:45.5]} 22. Bd4 {[%clk
0:01:26.7]} 22... Qg3+ {[%clk 0:01:33.8]} 23. Bf2 {[%clk 0:01:12]} 23... Qxg2
{[%clk 0:01:09]} 24. Rg1 {[%clk 0:01:11.7]} 24... Qe4 {[%clk 0:01:07.3]} 25. Kf1
{[%clk 0:01:01.7]} 25... Ng6 {[%clk 0:00:50.4]} 26. h5 {[%clk 0:00:47.5]} 26...
Nf4 {[%clk 0:00:36]} 27. h6 {[%clk 0:00:29.1]} 27... g6 {[%clk 0:00:29.3]} 28.
Rd2 {[%clk 0:00:15]} 28... Rac8 {[%clk 0:00:24]} 29. Bg3 {[%clk 0:00:11.6]}
29... Rc1+ {[%clk 0:00:17.2]} 30. Kf2 {[%clk 0:00:11.6]} 30... Rxg1 {[%clk
0:00:16.4]} 31. Kxg1 {[%clk 0:00:11.3]} 31... Qg2# {[%clk 0:00:17.1]} 0-1

[Event "*** Titled Tuesday Blitz"]
[Site "Chess.com"]
[Date "2021.03.30"]
[Round "10"]
[White "DrVitman"]
[Black "SantoBlue"]
[Result "0-1"]
[WhiteElo "2644"]
[BlackElo "2806"]
[TimeControl "180+1"]
[EndTime "11:57:32 PDT"]
[Termination "SantoBlue won on time"]

1. e4 {[%clk 0:03:00.9]} 1... e5 {[%clk 0:02:59.1]} 2. Nf3 {[%clk 0:03:00.5]}
2... Nc6 {[%clk 0:02:59.4]} 3. Bc4 {[%clk 0:02:58.8]} 3... Bc5 {[%clk
0:02:58.6]} 4. O-O {[%clk 0:02:59]} 4... Nf6 {[%clk 0:02:58.7]} 5. d4 {[%clk
0:02:59.4]} 5... Bxd4 {[%clk 0:02:58.1]} 6. Nxd4 {[%clk 0:02:58.8]} 6... Nxd4
{[%clk 0:02:58.7]} 7. Bg5 {[%clk 0:02:59.2]} 7... d6 {[%clk 0:02:54]} 8. f4
{[%clk 0:02:58.4]} 8... Bg4 {[%clk 0:02:48.8]} 9. Bxf6 {[%clk 0:02:57.9]} 9...
Bxd1 {[%clk 0:02:48.7]} 10. Bxd8 {[%clk 0:02:57.9]} 10... Rxd8 {[%clk 0:02:44]}
11. c3 {[%clk 0:02:57.4]} 11... Nc2 {[%clk 0:02:43.1]} 12. Rxd1 {[%clk
0:02:36.4]} 12... Nxa1 {[%clk 0:02:42.1]} 13. Na3 {[%clk 0:02:01.2]} 13... O-O
{[%clk 0:02:40.6]} 14. f5 {[%clk 0:01:55.5]} 14... c6 {[%clk 0:02:39.6]} 15.
Rxa1 {[%clk 0:01:51.7]} 15... d5 {[%clk 0:02:39.8]} 16. exd5 {[%clk 0:01:45.9]}
16... cxd5 {[%clk 0:02:40.7]} 17. Bb3 {[%clk 0:01:45.9]} 17... a6 {[%clk
0:02:35.4]} 18. Nc2 {[%clk 0:01:42.3]} 18... d4 {[%clk 0:02:32.6]} 19. cxd4
{[%clk 0:01:31]} 19... exd4 {[%clk 0:02:33.5]} 20. Ne1 {[%clk 0:01:30.2]} 20...
Rfe8 {[%clk 0:02:31.5]} 21. Nd3 {[%clk 0:01:28.9]} 21... Re2 {[%clk 0:02:26.5]}
22. Kf1 {[%clk 0:01:23.2]} 22... Rd2 {[%clk 0:02:18.4]} 23. Rd1 {[%clk
0:01:22.6]} 23... Rxd1+ {[%clk 0:02:18.4]} 24. Bxd1 {[%clk 0:01:23]} 24... Kf8
{[%clk 0:02:19.1]} 25. Bf3 {[%clk 0:01:19.8]} 25... b6 {[%clk 0:02:16.3]} 26.
Ke2 {[%clk 0:01:19.3]} 26... Ke7 {[%clk 0:02:15.8]} 27. Kd2 {[%clk 0:01:18.9]}
27... Kf6 {[%clk 0:02:15.9]} 28. g4 {[%clk 0:01:13.4]} 28... Re8 {[%clk
0:02:07.9]} 29. Nb4 {[%clk 0:00:50.1]} 29... Kg5 {[%clk 0:02:04.9]} 30. Nd5
{[%clk 0:00:39.3]} 30... b5 {[%clk 0:01:58.7]} 31. b3 {[%clk 0:00:38.7]} 31...
h5 {[%clk 0:01:53.6]} 32. h3 {[%clk 0:00:38]} 32... h4 {[%clk 0:01:51.3]} 33.
Kd3 {[%clk 0:00:34.1]} 33... Re1 {[%clk 0:01:48.8]} 34. Kxd4 {[%clk 0:00:32.5]}
34... Rg1 {[%clk 0:01:49.2]} 35. Be2 {[%clk 0:00:20.5]} 35... Rh1 {[%clk
0:01:45.2]} 36. Nc7 {[%clk 0:00:18.1]} 36... Rxh3 {[%clk 0:01:44.6]} 37. Nxa6
{[%clk 0:00:18.3]} 37... Rg3 {[%clk 0:01:44.2]} 38. Bxb5 {[%clk 0:00:17.9]}
38... h3 {[%clk 0:01:43.4]} 39. Bc6 {[%clk 0:00:16.1]} 39... Kxg4 {[%clk
0:01:42.5]} 40. Nc5 {[%clk 0:00:14.4]} 40... h2 {[%clk 0:01:42.2]} 41. a4 {[%clk
0:00:13.5]} 41... Rf3 {[%clk 0:01:37.3]} 42. Ne4 {[%clk 0:00:10.9]} 42... Kf4
{[%clk 0:01:27.3]} 43. Nd2 {[%clk 0:00:09.8]} 43... h1=Q {[%clk 0:01:25.5]} 44.
Nxf3 {[%clk 0:00:06]} 44... Qa1+ {[%clk 0:01:22.2]} 45. Kc5 {[%clk 0:00:05.6]}
45... Qc3+ {[%clk 0:01:21.7]} 46. Kd6 {[%clk 0:00:03.8]} 46... Qb4+ {[%clk
0:01:20.3]} 47. Kd7 {[%clk 0:00:02.3]} 47... Kxf5 {[%clk 0:01:18.6]} 48. Kc7
{[%clk 0:00:01.3]} 48... g5 {[%clk 0:01:16.8]} 49. Kd7 {[%clk 0:00:01.2]} 49...
g4 {[%clk 0:01:16.7]} 50. Nh4+ {[%clk 0:00:01.7]} 50... Ke5 {[%clk 0:01:16.3]}
51. Ng2 {[%clk 0:00:02.6]} 51... Qd6+ {[%clk 0:01:16.4]} 0-1

[Event "*** Titled Tuesday Blitz"]
[Site "Chess.com"]
[Date "2021.03.30"]
[Round "10"]
[White "AlexSuv"]
[Black "Perecke"]
[Result "1-0"]
[WhiteElo "2531"]
[BlackElo "2295"]
[TimeControl "180+1"]
[EndTime "11:57:34 PDT"]
[Termination "AlexSuv won by resignation"]

1. d4 {[%clk 0:03:00.9]} 1... d5 {[%clk 0:02:58.4]} 2. c4 {[%clk 0:03:00.1]}
2... e6 {[%clk 0:02:58.2]} 3. Nc3 {[%clk 0:02:59.1]} 3... Nf6 {[%clk 0:02:57.6]}
4. cxd5 {[%clk 0:02:58.4]} 4... exd5 {[%clk 0:02:56]} 5. Bg5 {[%clk 0:02:58.3]}
5... Be7 {[%clk 0:02:55.9]} 6. e3 {[%clk 0:02:58.4]} 6... O-O {[%clk 0:02:50.7]}
7. Bd3 {[%clk 0:02:58.4]} 7... Re8 {[%clk 0:02:43.8]} 8. Nf3 {[%clk 0:02:53.3]}
8... c6 {[%clk 0:02:41]} 9. O-O {[%clk 0:02:52.4]} 9... Nbd7 {[%clk 0:02:41.3]}
10. Qc2 {[%clk 0:02:51.4]} 10... Ne4 {[%clk 0:02:22]} 11. Bf4 {[%clk 0:02:39.5]}
11... Ne5 {[%clk 0:02:11.9]} 12. Nxe5 {[%clk 0:02:27]} 12... f5 {[%clk
0:01:53.6]} 13. f3 {[%clk 0:02:24.5]} 13... Nd6 {[%clk 0:01:52.1]} 14. Rad1
{[%clk 0:02:17.1]} 14... Bf6 {[%clk 0:01:50]} 15. e4 {[%clk 0:02:11.8]} 15...
dxe4 {[%clk 0:01:43.6]} 16. fxe4 {[%clk 0:02:12]} 16... Nf7 {[%clk 0:01:39.5]}
17. Nxf7 {[%clk 0:02:05.6]} 17... Qxd4+ {[%clk 0:01:39.2]} 18. Kh1 {[%clk
0:02:04.8]} 18... Kxf7 {[%clk 0:01:39.4]} 19. exf5 {[%clk 0:01:54.2]} 19... Kg8
{[%clk 0:01:35.8]} 20. Ne4 {[%clk 0:01:47.9]} 20... Qxb2 {[%clk 0:01:23.1]} 21.
Nxf6+ {[%clk 0:01:31]} 21... Qxf6 {[%clk 0:01:21.7]} 22. Rfe1 {[%clk 0:01:23.4]}
22... Bd7 {[%clk 0:01:13.6]} 23. Qb3+ {[%clk 0:01:22.7]} 23... Kh8 {[%clk
0:01:13.1]} 24. Qxb7 {[%clk 0:01:22.7]} 24... Bxf5 {[%clk 0:01:12.4]} 25. Bxf5
{[%clk 0:01:22.9]} 25... Qxf5 {[%clk 0:01:12.3]} 26. Bg3 {[%clk 0:01:23.2]}
26... Rad8 {[%clk 0:01:04.4]} 27. Rxe8+ {[%clk 0:01:15.8]} 27... Rxe8 {[%clk
0:01:05.3]} 28. Qxc6 {[%clk 0:01:16.4]} 28... Rf8 {[%clk 0:00:59.8]} 29. h3
{[%clk 0:01:10.4]} 29... h5 {[%clk 0:00:45.9]} 30. Qd5 {[%clk 0:01:08.1]} 30...
Qg6 {[%clk 0:00:42]} 31. Bh4 {[%clk 0:01:03.7]} 31... Kh7 {[%clk 0:00:36.5]} 32.
Qg5 {[%clk 0:00:59.6]} 32... Qf7 {[%clk 0:00:28.8]} 33. Rd5 {[%clk 0:00:54.7]}
33... Kg8 {[%clk 0:00:23.2]} 34. Qxh5 {[%clk 0:00:49.2]} 34... Qf1+ {[%clk
0:00:20.3]} 35. Kh2 {[%clk 0:00:49.2]} 35... Qf4+ {[%clk 0:00:18.9]} 36. Bg3
{[%clk 0:00:49.3]} 36... Qe4 {[%clk 0:00:19]} 37. Qe5 {[%clk 0:00:48.2]} 37...
Qg6 {[%clk 0:00:18.2]} 38. Rd6 {[%clk 0:00:47.1]} 38... Qc2 {[%clk 0:00:17.3]}
39. Qe6+ {[%clk 0:00:46.1]} 39... Kh8 {[%clk 0:00:15.8]} 40. Rd4 {[%clk
0:00:46.5]} 40... g6 {[%clk 0:00:10.4]} 41. Be5+ {[%clk 0:00:44.5]} 1-0

[Event "*** Titled Tuesday Blitz"]
[Site "Chess.com"]
[Date "2021.03.30"]
[Round "10"]
[White "CSB7"]
[Black "Jospem"]
[Result "1-0"]
[WhiteElo "2693"]
[BlackElo "2928"]
[TimeControl "180+1"]
[EndTime "11:57:39 PDT"]
[Termination "CSB7 won by resignation"]

1. e4 {[%clk 0:03:00]} 1... e5 {[%clk 0:02:59.6]} 2. Nf3 {[%clk 0:02:59.9]} 2...
Nc6 {[%clk 0:02:58.4]} 3. Bb5 {[%clk 0:02:59.6]} 3... a6 {[%clk 0:02:58.7]} 4.
Ba4 {[%clk 0:02:59.8]} 4... Nf6 {[%clk 0:02:58.9]} 5. O-O {[%clk 0:03:00.3]}
5... Nxe4 {[%clk 0:02:59.5]} 6. d4 {[%clk 0:02:54.5]} 6... Be7 {[%clk
0:02:58.7]} 7. Re1 {[%clk 0:02:47.6]} 7... b5 {[%clk 0:02:54.9]} 8. Rxe4 {[%clk
0:02:46.8]} 8... d5 {[%clk 0:02:54.8]} 9. Nxe5 {[%clk 0:02:46.6]} 9... Nxe5
{[%clk 0:02:55.3]} 10. Rxe5 {[%clk 0:02:47.5]} 10... bxa4 {[%clk 0:02:56]} 11.
b3 {[%clk 0:01:36.9]} 11... O-O {[%clk 0:02:55.1]} 12. Rxe7 {[%clk 0:01:36.6]}
12... Qxe7 {[%clk 0:02:56]} 13. Ba3 {[%clk 0:01:37]} 13... Qg5 {[%clk
0:02:56.1]} 14. Bxf8 {[%clk 0:01:37.2]} 14... Bh3 {[%clk 0:02:56.8]} 15. Qf1
{[%clk 0:01:31.1]} 15... Kxf8 {[%clk 0:02:53.9]} 16. Nc3 {[%clk 0:01:25.4]}
16... a3 {[%clk 0:02:13.4]} 17. Re1 {[%clk 0:00:54.9]} 17... c6 {[%clk
0:02:04.2]} 18. Re3 {[%clk 0:00:45.7]} 18... Bf5 {[%clk 0:01:57.9]} 19. Qe2
{[%clk 0:00:42.7]} 19... h5 {[%clk 0:01:49.7]} 20. Nb1 {[%clk 0:00:37.2]} 20...
h4 {[%clk 0:01:19]} 21. h3 {[%clk 0:00:37.2]} 21... Qf6 {[%clk 0:01:18.8]} 22.
Qd2 {[%clk 0:00:18.2]} 22... a5 {[%clk 0:01:05]} 23. Nxa3 {[%clk 0:00:17.6]}
23... Kg8 {[%clk 0:01:05.5]} 24. Nb1 {[%clk 0:00:12.6]} 24... a4 {[%clk
0:01:06]} 25. b4 {[%clk 0:00:12.2]} 25... Qg5 {[%clk 0:01:02.3]} 26. Re8+ {[%clk
0:00:06.9]} 26... Rxe8 {[%clk 0:01:02.1]} 27. Qxg5 {[%clk 0:00:07.8]} 27... Re1+
{[%clk 0:01:02.7]} 28. Kh2 {[%clk 0:00:08.2]} 28... Bxc2 {[%clk 0:01:00.2]} 29.
Qd2 {[%clk 0:00:08.6]} 29... Rxb1 {[%clk 0:00:57.5]} 30. Qxc2 {[%clk 0:00:08.8]}
30... Rxb4 {[%clk 0:00:58.3]} 31. Qxc6 {[%clk 0:00:09.3]} 31... Rxd4 {[%clk
0:00:58.8]} 32. Qe8+ {[%clk 0:00:08]} 32... Kh7 {[%clk 0:00:59.2]} 33. Qxf7
{[%clk 0:00:08.6]} 33... Rd2 {[%clk 0:00:59.2]} 34. Qf5+ {[%clk 0:00:08.1]}
34... Kg8 {[%clk 0:00:59.6]} 35. Qc8+ {[%clk 0:00:07.8]} 35... Kh7 {[%clk
0:01:00]} 36. Qf5+ {[%clk 0:00:08.1]} 36... Kg8 {[%clk 0:01:00.6]} 37. a3 {[%clk
0:00:08.5]} 37... d4 {[%clk 0:01:00.4]} 38. Qf4 {[%clk 0:00:08.8]} 38... Rd1
{[%clk 0:01:00.2]} 39. Qxh4 {[%clk 0:00:08.4]} 39... d3 {[%clk 0:00:59.9]} 40.
Qd8+ {[%clk 0:00:08]} 40... Kh7 {[%clk 0:00:59.9]} 41. Qh4+ {[%clk 0:00:08.5]}
41... Kg8 {[%clk 0:00:59.9]} 42. Qxa4 {[%clk 0:00:09]} 42... Rd2 {[%clk
0:00:57.6]} 43. Qa8+ {[%clk 0:00:08.6]} 43... Kh7 {[%clk 0:00:57.8]} 44. Qe4+
{[%clk 0:00:08.8]} 44... Kg8 {[%clk 0:00:58.2]} 45. Qd4 {[%clk 0:00:09.3]} 45...
Rd1 {[%clk 0:00:58]} 46. a4 {[%clk 0:00:09.3]} 46... d2 {[%clk 0:00:58.4]} 47.
a5 {[%clk 0:00:09.9]} 47... Kh7 {[%clk 0:00:53.9]} 48. a6 {[%clk 0:00:09.4]}
48... g5 {[%clk 0:00:54.8]} 49. a7 {[%clk 0:00:09.4]} 49... Ra1 {[%clk
0:00:55.6]} 50. Qxa1 {[%clk 0:00:08.3]} 1-0

[Event "*** Titled Tuesday Blitz"]
[Site "Chess.com"]
[Date "2021.03.30"]
[Round "10"]
[White "Nikolaj_6"]
[Black "Twitch_ElhamBlitz05"]
[Result "0-1"]
[WhiteElo "2655"]
[BlackElo "2861"]
[TimeControl "180+1"]
[EndTime "11:57:39 PDT"]
[Termination "Twitch_ElhamBlitz05 won by resignation"]

1. e4 {[%clk 0:03:00.9]} 1... c6 {[%clk 0:03:00.2]} 2. d4 {[%clk 0:02:59.4]}
2... d5 {[%clk 0:03:01.1]} 3. exd5 {[%clk 0:02:59.3]} 3... cxd5 {[%clk 0:03:02]}
4. Bd3 {[%clk 0:02:59.7]} 4... Nf6 {[%clk 0:03:02.9]} 5. h3 {[%clk 0:02:58.7]}
5... g6 {[%clk 0:03:03.5]} 6. Nf3 {[%clk 0:02:55.7]} 6... Bg7 {[%clk 0:03:03.9]}
7. O-O {[%clk 0:02:55.6]} 7... O-O {[%clk 0:03:04.6]} 8. Re1 {[%clk 0:02:55.3]}
8... Nc6 {[%clk 0:03:05.2]} 9. c3 {[%clk 0:02:55]} 9... Bf5 {[%clk 0:03:05.1]}
10. Bf1 {[%clk 0:02:50]} 10... Rc8 {[%clk 0:03:04.7]} 11. Bf4 {[%clk 0:02:49]}
11... a6 {[%clk 0:03:04]} 12. Nbd2 {[%clk 0:02:46.3]} 12... Na5 {[%clk
0:02:57.6]} 13. Ne5 {[%clk 0:02:44.7]} 13... Qb6 {[%clk 0:02:54.5]} 14. Nb3
{[%clk 0:02:41.3]} 14... Nc4 {[%clk 0:02:51.6]} 15. Qc1 {[%clk 0:02:35.5]} 15...
Be6 {[%clk 0:02:35.5]} 16. Bxc4 {[%clk 0:02:30]} 16... dxc4 {[%clk 0:02:35.6]}
17. Nc5 {[%clk 0:02:30.2]} 17... Bd5 {[%clk 0:01:44.7]} 18. Ned7 {[%clk
0:02:25.8]} 18... Nxd7 {[%clk 0:01:44.5]} 19. Nxd7 {[%clk 0:02:26.3]} 19... Qc6
{[%clk 0:01:45.1]} 20. Nxf8 {[%clk 0:02:22.7]} 20... Bxg2 {[%clk 0:01:44.1]} 21.
Qe3 {[%clk 0:01:56.9]} 21... Bxf8 {[%clk 0:01:26.4]} 22. Qg3 {[%clk 0:01:52.4]}
22... Be4 {[%clk 0:01:21.9]} 23. Qh4 {[%clk 0:01:31.9]} 23... Bf5 {[%clk
0:01:13.7]} 24. Bh6 {[%clk 0:01:24.8]} 24... Bxh6 {[%clk 0:01:08.4]} 25. Qxh6
{[%clk 0:01:25.7]} 25... e6 {[%clk 0:01:07.2]} 26. Rad1 {[%clk 0:01:16.7]} 26...
Qf3 {[%clk 0:01:01]} 27. Qe3 {[%clk 0:01:16.3]} 27... Qxh3 {[%clk 0:00:58.3]}
28. Qxh3 {[%clk 0:01:15]} 28... Bxh3 {[%clk 0:00:59.2]} 29. d5 {[%clk
0:01:15.5]} 29... exd5 {[%clk 0:00:55.6]} 30. Rxd5 {[%clk 0:01:14.4]} 30... Be6
{[%clk 0:00:55.2]} 31. Rd6 {[%clk 0:01:10.2]} 31... h5 {[%clk 0:00:48.7]} 32.
Rb6 {[%clk 0:01:08.2]} 32... Rc7 {[%clk 0:00:46.5]} 33. f4 {[%clk 0:01:08.1]}
33... Kg7 {[%clk 0:00:45.4]} 34. Kf2 {[%clk 0:01:06.9]} 34... Kf6 {[%clk
0:00:44.7]} 35. Re5 {[%clk 0:01:05.2]} 35... Rd7 {[%clk 0:00:43.2]} 36. Rc5
{[%clk 0:01:01.6]} 36... Kg7 {[%clk 0:00:37.3]} 37. b3 {[%clk 0:00:47.8]} 37...
cxb3 {[%clk 0:00:34.5]} 38. axb3 {[%clk 0:00:47.2]} 38... h4 {[%clk 0:00:33.1]}
39. Re5 {[%clk 0:00:40.3]} 39... h3 {[%clk 0:00:31.4]} 40. Re1 {[%clk
0:00:25.3]} 40... Rd2+ {[%clk 0:00:26.8]} 41. Kg3 {[%clk 0:00:24.7]} 41... Rg2+
{[%clk 0:00:21.4]} 42. Kf3 {[%clk 0:00:25]} 42... Bd5+ {[%clk 0:00:20.4]} 43.
Ke3 {[%clk 0:00:25.4]} 43... h2 {[%clk 0:00:20.3]} 0-1

[Event "*** Titled Tuesday Blitz"]
[Site "Chess.com"]
[Date "2021.03.30"]
[Round "10"]
[White "ehrenfeld"]
[Black "lacafi"]
[Result "1-0"]
[WhiteElo "2513"]
[BlackElo "2249"]
[TimeControl "180+1"]
[EndTime "11:57:40 PDT"]
[Termination "ehrenfeld won on time"]

1. e4 {[%clk 0:02:42.2]} 1... c6 {[%clk 0:02:59.6]} 2. d4 {[%clk 0:02:41.2]}
2... d5 {[%clk 0:02:59.6]} 3. exd5 {[%clk 0:02:41.8]} 3... cxd5 {[%clk
0:02:59.9]} 4. Bd3 {[%clk 0:02:42.4]} 4... Nf6 {[%clk 0:02:58]} 5. c3 {[%clk
0:02:42.6]} 5... g6 {[%clk 0:02:57.2]} 6. Nf3 {[%clk 0:02:41.3]} 6... Bg7 {[%clk
0:02:57.5]} 7. O-O {[%clk 0:02:41.7]} 7... O-O {[%clk 0:02:56.7]} 8. Re1 {[%clk
0:02:42.2]} 8... Nc6 {[%clk 0:02:55.8]} 9. Bf4 {[%clk 0:02:41.1]} 9... Nh5
{[%clk 0:02:53.1]} 10. Bg5 {[%clk 0:02:38.7]} 10... h6 {[%clk 0:02:49.3]} 11.
Bh4 {[%clk 0:02:38.2]} 11... Nf4 {[%clk 0:02:46.2]} 12. Bf1 {[%clk 0:02:37.3]}
12... Bg4 {[%clk 0:02:30.1]} 13. Nbd2 {[%clk 0:02:35.5]} 13... a6 {[%clk
0:02:18.4]} 14. h3 {[%clk 0:02:34.5]} 14... Bf5 {[%clk 0:02:09.2]} 15. Nb3
{[%clk 0:02:33.7]} 15... b6 {[%clk 0:01:32.5]} 16. Bg3 {[%clk 0:02:31.6]} 16...
Ne6 {[%clk 0:01:22.8]} 17. Ne5 {[%clk 0:02:23.7]} 17... Nxe5 {[%clk 0:01:21.6]}
18. Bxe5 {[%clk 0:02:23.6]} 18... g5 {[%clk 0:01:10.3]} 19. a4 {[%clk
0:02:20.4]} 19... f6 {[%clk 0:00:34.9]} 20. Bh2 {[%clk 0:02:18.8]} 20... Nc7
{[%clk 0:00:34.5]} 21. c4 {[%clk 0:02:12.2]} 21... Kh8 {[%clk 0:00:31.3]} 22.
Rc1 {[%clk 0:02:10.8]} 22... Bh7 {[%clk 0:00:25]} 23. a5 {[%clk 0:02:05.7]}
23... bxa5 {[%clk 0:00:23.9]} 24. Nc5 {[%clk 0:02:01.3]} 24... Bg8 {[%clk
0:00:17.1]} 25. Qa4 {[%clk 0:01:49.2]} 25... dxc4 {[%clk 0:00:14.9]} 26. Qxa5
{[%clk 0:01:46.2]} 26... Qxd4 {[%clk 0:00:09.3]} 27. Bxc7 {[%clk 0:01:35.7]}
27... Rac8 {[%clk 0:00:04.8]} 28. Bb6 {[%clk 0:01:31.2]} 28... Qxb2 {[%clk
0:00:03.5]} 29. Rb1 {[%clk 0:01:25.1]} 29... Qc2 {[%clk 0:00:01.8]} 30. Rec1
{[%clk 0:01:19.7]} 30... Qg6 {[%clk 0:00:01.5]} 31. Nxa6 {[%clk 0:01:10.8]}
31... e5 {[%clk 0:00:01.6]} 32. Nc7 {[%clk 0:01:09]} 32... f5 {[%clk 0:00:01.8]}
33. Bxc4 {[%clk 0:00:51.7]} 33... Bxc4 {[%clk 0:00:01.5]} 34. Rxc4 {[%clk
0:00:51.1]} 34... f4 {[%clk 0:00:02.4]} 35. Rbc1 {[%clk 0:00:49.7]} 35... e4
{[%clk 0:00:02.5]} 36. Nd5 {[%clk 0:00:42.7]} 36... Rxc4 {[%clk 0:00:02]} 37.
Rxc4 {[%clk 0:00:42.2]} 37... f3 {[%clk 0:00:02.5]} 38. Ne3 {[%clk 0:00:37.8]}
38... fxg2 {[%clk 0:00:02.1]} 39. Bd4 {[%clk 0:00:30.7]} 39... Qf7 {[%clk
0:00:02]} 40. Bxg7+ {[%clk 0:00:30]} 1-0

[Event "*** Titled Tuesday Blitz"]
[Site "Chess.com"]
[Date "2021.03.30"]
[Round "10"]
[White "DKmirl"]
[Black "MIJuanReyesRosa"]
[Result "0-1"]
[WhiteElo "1922"]
[BlackElo "2113"]
[TimeControl "180+1"]
[EndTime "11:57:45 PDT"]
[Termination "MIJuanReyesRosa won on time"]

1. d4 {[%clk 0:03:00.9]} 1... e6 {[%clk 0:02:59.3]} 2. c4 {[%clk 0:03:01.4]}
2... a6 {[%clk 0:02:58.7]} 3. Nf3 {[%clk 0:03:01.9]} 3... c5 {[%clk 0:02:58.1]}
4. e3 {[%clk 0:02:50.8]} 4... d5 {[%clk 0:02:52.5]} 5. Nc3 {[%clk 0:02:48.7]}
5... Nf6 {[%clk 0:02:49.7]} 6. cxd5 {[%clk 0:02:48.7]} 6... exd5 {[%clk
0:02:49.5]} 7. dxc5 {[%clk 0:02:48.8]} 7... Bxc5 {[%clk 0:02:48.1]} 8. Be2
{[%clk 0:02:49.2]} 8... Nc6 {[%clk 0:02:47.1]} 9. O-O {[%clk 0:02:48.7]} 9...
O-O {[%clk 0:02:47.2]} 10. b3 {[%clk 0:02:37.1]} 10... Be6 {[%clk 0:02:44.5]}
11. Bb2 {[%clk 0:02:35.1]} 11... Qe7 {[%clk 0:02:43.6]} 12. Rc1 {[%clk
0:02:26.2]} 12... Bd6 {[%clk 0:02:39.1]} 13. h3 {[%clk 0:02:16.4]} 13... Rfd8
{[%clk 0:02:37.8]} 14. Nd4 {[%clk 0:02:16]} 14... Rac8 {[%clk 0:02:34.5]} 15.
Nxe6 {[%clk 0:02:15]} 15... Qxe6 {[%clk 0:02:32.6]} 16. Bf3 {[%clk 0:02:14.9]}
16... Ne4 {[%clk 0:02:29.1]} 17. Nxe4 {[%clk 0:01:50.5]} 17... dxe4 {[%clk
0:02:28.5]} 18. Bg4 {[%clk 0:01:41.6]} 18... Qg6 {[%clk 0:02:08.1]} 19. Qc2
{[%clk 0:01:27.4]} 19... f5 {[%clk 0:01:58.4]} 20. Qc4+ {[%clk 0:01:23]} 20...
Kh8 {[%clk 0:01:56.1]} 21. Be2 {[%clk 0:01:17.9]} 21... h6 {[%clk 0:01:50.8]}
22. h4 {[%clk 0:00:57.5]} 22... Bb8 {[%clk 0:01:23.9]} 23. h5 {[%clk 0:00:54.9]}
23... Qd6 {[%clk 0:01:21.3]} 24. Qc3 {[%clk 0:00:52.5]} 24... Qd7 {[%clk
0:01:16]} 25. Rfd1 {[%clk 0:00:46]} 25... Qe7 {[%clk 0:01:05.6]} 26. Rxd8+
{[%clk 0:00:34.6]} 26... Rxd8 {[%clk 0:01:03.9]} 27. Bxa6 {[%clk 0:00:20.7]}
27... Be5 {[%clk 0:01:00.7]} 28. Qc5 {[%clk 0:00:16.2]} 28... Bxb2 {[%clk
0:00:56.7]} 29. Qxe7 {[%clk 0:00:16]} 29... Nxe7 {[%clk 0:00:56.1]} 30. Rc2
{[%clk 0:00:14.4]} 30... bxa6 {[%clk 0:00:51.3]} 31. Rxb2 {[%clk 0:00:14.7]}
31... Nd5 {[%clk 0:00:49.4]} 32. Rd2 {[%clk 0:00:14.1]} 32... Kg8 {[%clk
0:00:48.7]} 33. a4 {[%clk 0:00:12]} 33... Kf7 {[%clk 0:00:48]} 34. b4 {[%clk
0:00:12.5]} 34... Ke7 {[%clk 0:00:47.6]} 35. b5 {[%clk 0:00:12.5]} 35... axb5
{[%clk 0:00:46.1]} 36. axb5 {[%clk 0:00:13.2]} 36... Kd6 {[%clk 0:00:44.5]} 37.
Ra2 {[%clk 0:00:10.3]} 37... Rb8 {[%clk 0:00:40.6]} 38. Ra7 {[%clk 0:00:10.2]}
38... Nc7 {[%clk 0:00:39.1]} 0-1